Workbook

Sheet ProCold_Calculator
L2: DATENBANK
W3: Country-Selection | Z3: EU
W4: =VLOOKUP(Z3,AM54:BH64,20,FALSE) -> Professional Storage Cabinets
W6: =VLOOKUP(Z3,AM54:BD64,13,FALSE) -> Calculation settings
W7: =VLOOKUP(Z3,AM54:BD64,4,FALSE) -> Electricity tariff | Z7: 0.2 | AA7: =VLOOKUP(Z3,AM54:BQ64,29,FALSE) -> €/kWh | AB7: =VLOOKUP(Z3,AM54:BS64,33,FALSE) -> Default: | AC7: =VLOOKUP(Z3,AM54:BT64,34,FALSE) -> 0.20
W8: =VLOOKUP(Z3,AM54:BE64,19,FALSE) -> CO2 emission factor | Z8: 0.44 | AA8: kg CO2/kWh | AB8: =VLOOKUP(Z3,AM54:BS64,33,FALSE) -> Default: | AC8: =VLOOKUP(Z3,AM54:CP64,56,FALSE) -> 0.44
W10: =VLOOKUP(Z3,AM54:BD64,2,FALSE) -> Select product type
L11: Sprache | M11: =MATCH(Z3,AM54:AM64,0) -> 1 | N11: 1 | Z11: Storage Counter Refrigerators | AN11: Dies ist die SVERWEIS-Datenbank - hier holt sich das Tool die benötigten Beschriftungen bzw. Einheiten - welche länderabhängig sind. Für die englisch u. deutssprachigen Länder sind die Bezeichungen schon festgelegt. Für die anderen noch ausstehenen Länder (z.B. Iatlien, Frankreich, usw.) wurde als Platzhalter immer der englische Begriff unter Anführungszeichen in der Datenbank hinterlegt - dieser kann dann durch den jweiligen Partner selber in der SVERWEIS Datenbank auf die richtige Sprache umgeändert werden...
L12: Zeile 1 | M12: =ROW($BI$54) -> 54 | N12: 54 | O12: 54 | W12: =VLOOKUP(Z3,AM54:BG64,21,FALSE) -> Input product data
L13: Spalte vorher | M13: =COLUMN($BI$54)+IFERROR(MATCH($Z$11,$BI$54:$BN$54,0),IFERROR(MATCH($Z$11,$BI$55:$BN$55,0),IFERROR(MATCH($Z$11,$BI$56:$BN$56,0),IFERROR(MATCH($Z$11,$BI$61:$BN$61,0),IFERROR(MATCH($Z$11,$BI$62:$BN$62,0),IFERROR(MATCH($Z$11,$BI$63:$BN$63,0),MATCH($Z$11,$BI$64:$BN$64,0))))))) -> 62 | N13: 52 | W13: =VLOOKUP(Z3,AM54:BD64,9,FALSE) -> Net volume | Z13: 608 | AA13: L
W15: =VLOOKUP(Z3,AM54:BU64,35,FALSE) -> Annual Energy Consumption (AEC = TEC * 365) | Z15: 1617 | AA15: kWh/a
W17: =VLOOKUP(Z3,AM54:BU64,18,FALSE) -> Number of products | Z17: 1
L19: Table coefficient M a. N | Q19: kg CO2e/l | W19: =VLOOKUP(Z3,AM54:BU64,10,FALSE) -> Service life | Z19: 8 | AA19: =VLOOKUP(Z3,AM54:CC64,30,FALSE) -> years
L20: category | M20: M | N20: N | O20: EEI | Q20: Graue Emissionen | R20: Geräte
L21: =INDEX($BI$54:$BI$64,$M$11) -> Storage Counter Refrigerators | M21: 2.555 | N21: 1790 | O21: =$P$73 -> 21.075 | P21: =VLOOKUP(Z3,AM54:CA64,36,FALSE) -> „Find efficient Storage Counter Refrigerators online“ | Q21: 2.42 | R21: =VLOOKUP(Z3,AM54:CL64,47,FALSE) -> http://www.pro-cold.eu/english/storage-refrigerators/storage-counter-refrigerators.html | W21: =VLOOKUP(Z3,AM54:BD64,17,FALSE) -> Your product price | Z21: 2000 | AA21: =VLOOKUP(Z3,AM54:BQ64,31,FALSE) -> €
L22: =INDEX($BJ$54:$BJ$64,$M$11) -> Storage Refrigerators 1 - door | M22: 1.643 | N22: 609 | O22: =$P$100 -> 42.18576923 | P22: =VLOOKUP(Z3,AM54:CA64,37,FALSE) -> „Find efficient Storage Refrigerators 1 - door online“ | Q22: 2.42 | R22: =VLOOKUP(Z3,AM54:CL64,48,FALSE) -> http://www.pro-cold.eu/english/storage-refrigerators/storage-refrigerators-1-door-2.html | W22: =VLOOKUP(Z3,AM54:BD64,16,FALSE) -> Top product price | Z22: 2500 | AA22: =VLOOKUP(Z3,AM54:BQ64,31,FALSE) -> €
L23: =INDEX($BK$54:$BK$64,$M$11) -> Storage Refrigerators 2 - doors | M23: 1.643 | N23: 609 | O23: =$P$109 -> 51.85 | P23: =VLOOKUP(Z3,AM54:CA64,38,FALSE) -> „Find efficient Storage Refrigerators 2 - doors online“ | Q23: 2.42 | R23: =VLOOKUP(Z3,AM54:CL64,49,FALSE) -> http://www.pro-cold.eu/english/storage-refrigerators/storage-refrigerators-2-doors-2.html | W23: =VLOOKUP(Z3,AM54:BH64,22,FALSE) -> Product comparison over life time
L24: =INDEX($BL$54:$BL$64,$M$11) -> Storage Counter Freezers | M24: 5.84 | N24: 2380 | O24: =$P$112 -> 22.35 | P24: =VLOOKUP(Z3,AM54:CA64,39,FALSE) -> „Find efficient Storage Counter Freezers online“ | Q24: 5.8 | R24: =VLOOKUP(Z3,AM54:CL64,50,FALSE) -> http://www.pro-cold.eu/english/storage-freezers/storage-counter-freezers-2.html | X24: =VLOOKUP(Z3,AM54:BD64,7,FALSE) -> Energy consumption | Z24: =VLOOKUP(Z3,AM54:CV64,53,FALSE) -> Purchase price | AB24: =VLOOKUP(Z3,AM54:BD64,8,FALSE) -> Energy costs | AD24: =VLOOKUP(Z3,AM54:BD64,11,FALSE) -> CO2 emissions
L25: =INDEX($BM$54:$BM$64,$M$11) -> Storage Freezers 1 - door | M25: 4.928 | N25: 1472 | O25: =$P$133 -> 53.33 | P25: =VLOOKUP(Z3,AM54:CA64,40,FALSE) -> „Find efficient Storage Freezers 1 - door online“ | Q25: 5.8 | R25: =VLOOKUP(Z3,AM54:CL64,51,FALSE) -> http://www.pro-cold.eu/english/storage-freezers/storage-freezers-1-door-2.html | W25: =VLOOKUP(Z3,AM54:BD64,3,FALSE) -> Your product | X25: =$Z$15*$Z$19*$Z$17 -> 12936 | Y25: kWh | Z25: =$Z$21*$Z$17 -> 2000 | AA25: =VLOOKUP(Z3,AM54:CE64,31,FALSE) -> € | AB25: =$X$25*$Z$7 -> 2587.2 | AC25: =VLOOKUP(Z3,AM54:BQ64,31,FALSE) -> € | AD25: =($X$25*$Z$8)/1000 -> 5.69184 | AE25: t
L26: =INDEX($BN$54:$BN$64,$M$11) -> Storage Freezers 2 - doors | M26: 4.928 | N26: 1472 | O26: =$P$139 -> 64.3 | P26: =VLOOKUP(Z3,AM54:CA64,41,FALSE) -> „Find efficient Storage Freezers 2 - doors online“ | Q26: 5.8 | R26: =VLOOKUP(Z3,AM54:CL64,52,FALSE) -> http://www.pro-cold.eu/english/storage-freezers/storage-freezers-2-doors-2.html | W26: =VLOOKUP(Z3,AM54:BD64,5,FALSE) -> Top product | X26: =(($X$30*$M$35)/100)*$Z$19*$Z$17 -> 5637.03984 | Y26: kWh | Z26: =$Z$22*$Z$17 -> 2500 | AA26: =VLOOKUP(Z3,AM54:CE64,31,FALSE) -> € | AB26: =$X$26*$Z$7 -> 1127.407968 | AC26: =VLOOKUP(Z3,AM54:BQ64,31,FALSE) -> € | AD26: =($X$26*$Z$8)/1000 -> 2.48029753 | AE26: t
W27: =VLOOKUP(Z3,AM54:BD64,6,FALSE) -> Total Savings | X27: =$X$25-$X$26 -> 7298.96016 | Y27: kWh | AB27: =($Z$25+$AB$25)-($Z$26+$AB$26) -> 959.792032 | AC27: =VLOOKUP(Z3,AM54:BQ64,31,FALSE) -> € | AD27: =$AD$25-$AD$26 -> 3.21154247 | AE27: t
X28: =VLOOKUP(Z3,AM54:BD64,14,FALSE) -> Energy Efficiency Index | AA28: =VLOOKUP(Z3,AM54:BD64,15,FALSE) -> Energy Class | AD28: =VLOOKUP(Z3,AM54:CQ64,57,FALSE) -> Grey CO2 emissions
W29: =VLOOKUP(Z3,AM54:CO64,54,FALSE) -> Your product | X29: =($Z$15/$M$35)*100 -> 48.36336229 | AA29: =IF($X$29<10,"A+++",IF($X$29<15,"A++",IF($X$29<20,"A+",IF($X$29<30,"A",IF($X$29<40,"B",IF($X$29<55,"C",IF($X$29<75,"D",IF($X$29<85,"E","F-G")))))))) -> C | AD29: =($Z$13*$P$33)/1000 -> 1.47136 | AE29: t
W30: =VLOOKUP(Z3,AM54:CO64,55,FALSE) -> Top product | X30: =VLOOKUP(Z11,L21:O26,4,FALSE) -> 21.075 | AA30: =IF($X$30<10,"A+++",IF($X$30<15,"A++",IF($X$30<20,"A+",IF($X$30<30,"A",IF($X$30<40,"B",IF($X$30<55,"C",IF($X$30<75,"D",IF($X$30<85,"E","F-G")))))))) -> A
L32: Auswahl: | M32: M | N32: N | P32: Auswahl: | W32: =VLOOKUP(Z3,AM54:BR64,32,FALSE) -> Link | X32: =HYPERLINK(VLOOKUP(Z11,L21:R26,7,FALSE),VLOOKUP(Z11,L21:R26,5,FALSE)) -> „Find efficient Storage Counter Refrigerators online“
M33: =VLOOKUP(Z11,L21:N26,2,FALSE) -> 2.555 | N33: =VLOOKUP(Z11,L21:N26,3,FALSE) -> 1790 | P33: =VLOOKUP(Z11,L21:Q26,6,FALSE) -> 2.42 | W33: =VLOOKUP(Z3,AM54:CF64,46,FALSE) -> Short description: This tool is designed to help the buyers to save on the purchase of new refrigerators and freezers (mainly in the commercial sector), energy and costs. What follows is a short step by step guide: To enable a cost comparison between the existing refrigerators and the new energy efficient devices - the tool nees some input data (cells with gray background!) 1) The first thing is to select the right country with the help of a drop down menu (eg Austria) - so that the language can be set automatically 2) Select the existing refrigerator or freezer with the help of the dorp down menu (eg Storage Counter Refrigerators) 3) Fill in the Country-specific tariff and CO2 emission factor (eg 0.44 kgCO2/kWh) 4) Fill in the nominal volume of the respective refrigerator or freezer (eg 315 L) - also possible with the slider 5) Add the anual energy consumption in [kWh/a] (eg 1533 kWh/a) - also possible with the slider 6) Possibility to enter several products of the same category (eg 3x Storage Counter Refrigerator) 7) Entering the service life of your device (eg 8 years) 8) Option to indicate the purchase prices of the existing and the new efficient device (eg € 1,000 - € or 1200 €) With this information, the tool can calculate the total cost of ownership and gives out the result in the green highlighted cell (this is also illustrated in the graph). The total energy saved and the CO2 emissions related to the service life are also calculated by the tool (cells with green background). Using the tip-links, you can instantly find the most efficient devices for the selected product category
L35: SAEC | M35: =$M$33*$Z$13+$N$33 -> 3343.44
P37: Diagramm - Beschriftungen:
L38: Formeln | P38: =VLOOKUP(Z3,AM54:CD64,42,FALSE) -> Comparison of Total Costs
L39: EEI | M39: (AEC/SAEC) x 100 | P39: =VLOOKUP(Z3,AM54:CD64,43,FALSE) -> in €
L40: AEC | M40: E24h x 365
L41: SAEC | M41: M x Vn + N
L44: Energy efficiency class | M44: EEI | N44: siehe Seite 14 labeling.pdf
L45: A+++ | M45: EEI < 10
L46: A++ | M46: 10 ≤ EEI < 15
L47: A+ | M47: 15 ≤ EEI < 20 | P47: Hilfsrechnung Kosten für Diagramm:
L48: A | M48: 20 ≤ EEI < 30 | P48: Bestehendes Prod. | R48: =$Z$25+$AB$25 -> 4587.2
L49: B | M49: 30 ≤ EEI < 40 | P49: Topprodukt | R49: =$Z$26+$AB$26 -> 3627.407968
L50: C | M50: 40 ≤ EEI < 55
L51: D | M51: 55 ≤ EEI < 75
L52: E | M52: 75 ≤ EEI < 85 | CG52: Refrigerators | CJ52: Freezers
L53: F | M53: 85 ≤ EEI < 95 | CG53: Tip-links: different languages - counter | CH53: Tip-links: different languages - 1 door | CI53: Tip-links: different languages - 2 doors | CJ53: Tip-links: different languages - counter | CK53: Tip-links: different languages - 1 door | CL53: Tip-links: different languages - 2 doors
L54: G | M54: 95 ≤ EEI < 115 | AM54: EU | AN54: Select product type | AO54: Your product | AP54: Electricity tariff | AQ54: Top product | AR54: Total Savings | AS54: Energy consumption | AT54: Energy costs | AU54: Net volume | AV54: Service life | AW54: CO2 emissions | AX54: Top product | AY54: Calculation settings | AZ54: Energy Efficiency Index | BA54: Energy Class | BB54: Top product price | BC54: Your product price | BD54: Number of products | BE54: CO2 emission factor | BF54: Professional Storage Cabinets | BG54: Input product data | BH54: Product comparison over life time | BI54: Storage Counter Refrigerators | BJ54: Storage Refrigerators 1 - door | BK54: Storage Refrigerators 2 - doors | BL54: Storage Counter Freezers | BM54: Storage Freezers 1 - door | BN54: Storage Freezers 2 - doors | BO54: €/kWh | BP54: years | BQ54: € | BR54: Link | BS54: Default: | BT54: 0.20 | BU54: Annual Energy Consumption (AEC = TEC * 365) | BV54: „Find efficient Storage Counter Refrigerators online“ | BW54: „Find efficient Storage Refrigerators 1 - door online“ | BX54: „Find efficient Storage Refrigerators 2 - doors online“ | BY54: „Find efficient Storage Counter Freezers online“ | BZ54: „Find efficient Storage Freezers 1 - door online“ | CA54: „Find efficient Storage Freezers 2 - doors online“ | CB54: Comparison of Total Costs | CC54: in € | CD54: http://www.pro-cold.eu/ | CE54: Purchase price | CF54: Short description: This tool is designed to help the buyers to save on the purchase of new refrigerators and freezers (mainly in the commercial sector), energy and costs. What follows is a short step by step guide: To enable a cost comparison between the existing refrigerators and the new energy efficient devices - the tool nees some input data (cells with gray background!) 1) The first thing is to select the right country with the help of a drop down menu (eg Austria) - so that the language can be set automatically 2) Select the existing refrigerator or freezer with the help of the dorp down menu (eg Storage Counter Refrigerators) 3) Fill in the Country-specific tariff and CO2 emission factor (eg 0.44 kgCO2/kWh) 4) Fill in the nominal volume of the respective refrigerator or freezer (eg 315 L) - also possible with the slider 5) Add the anual energy consumption in [kWh/a] (eg 1533 kWh/a) - also possible with the slider 6) Possibility to enter several products of the same category (eg 3x Storage Counter Refrigerator) 7) Entering the service life of your device (eg 8 years) 8) Option to indicate the purchase prices of the existing and the new efficient device (eg € 1,000 - € or 1200 €) With this information, the tool can calculate the total cost of ownership and gives out the result in the green highlighted cell (this is also illustrated in the graph). The total energy saved and the CO2 emissions related to the service life are also calculated by the tool (cells with green background). Using the tip-links, you can instantly find the most efficient devices for the selected product category | CG54: http://www.pro-cold.eu/english/storage-refrigerators/storage-counter-refrigerators.html | CH54: http://www.pro-cold.eu/english/storage-refrigerators/storage-refrigerators-1-door-2.html | CI54: http://www.pro-cold.eu/english/storage-refrigerators/storage-refrigerators-2-doors-2.html | CJ54: http://www.pro-cold.eu/english/storage-freezers/storage-counter-freezers-2.html | CK54: http://www.pro-cold.eu/english/storage-freezers/storage-freezers-1-door-2.html | CL54: http://www.pro-cold.eu/english/storage-freezers/storage-freezers-2-doors-2.html | CM54: Purchase price | CN54: Your product | CO54: Top product | CP54: 0.44 | CQ54: Grey CO2 emissions
AM55: Austria | AN55: Auswahl des Produkttyps | AO55: Ihr Produkt | AP55: Stromtarif | AQ55: Top Produkt | AR55: Gesamte Ersparnis | AS55: Energieverbrauch | AT55: Energiekosten | AU55: Netto Volumen | AV55: Nutzungsdauer | AW55: CO2 Emissionen | AX55: Top Produkt | AY55: Berechnungseinstellungen | AZ55: Energie Effizienz Index | BA55: Energie Effizienz Klasse | BB55: Top Produkt Preis | BC55: Ihr Produkt Preis | BD55: Anzahl Geräte | BE55: CO2 Emissonsfaktor | BF55: Professionelle Lagerkühlgeräte | BG55: Input Produktdaten | BH55: Produktvergleich bezogen auf die Lebensdauer | BI55: Lager-Kühlgeräte Unterbau | BJ55: Lager-Kühlschränke 1 - türig | BK55: Lager-Kühlschränke 2 - türig | BL55: Lager-Tiefkühlgeräte Unterbau | BM55: Lager-Tiefkühlschränke 1-türig | BN55: Lager-Tiefkühlschränke 2-türig | BO55: €/kWh | BP55: Jahre | BQ55: € | BR55: Tipplink | BS55: Default: | BT55: 0.12 | BU55: Jahresenergieverbrauch (AEC = TEC * 365) | BV55: "Finde effiziente Lager-Kühlgeräte (Unterbau) online" | BW55: "Finde effiziente Lager-Kühlschränke 1 - türig online" | BX55: "Finde effiziente Lager-Kühlschränke 2-türig online" | BY55: "Finde effiziente Lager-Tiefkühlgeräte (Unterbau) online" | BZ55: "Finde effiziente Lager-Tiefkühlschränke 1 - türig online" | CA55: "Finde effiziente Lager-Tiefkühlschränke 2 - türig online" | CB55: Gesamtkosten Vergleich | CC55: in € | CD55: http://www.topprodukte.at/ | CE55: Kaufpreis | CF55: Kurzbeschreibung: Dieses Rechentool soll dem Einkäufer helfen, bei der Anschaffung neuer Kühl- und Gefriergeräte (vorwiegend im gewerblichen Bereich), Energie und Kosten zu sparen. Es folgt nun eine kurze Schritt-für-Schritt-Anleitung: Um einen Kostenvergleich zwischen den im Unternehmen bestehenden Kühlgeräten und den neu anzuschaffenden, energieeffizienten Geräten ermöglichen zu können, benötigt das Tool einige Inputdaten (grau hinterlegten Felder!) 1) Als erstes muss das jeweilige Land über das Dropdown-Menü ausgewählt werden (z.B. Austria) - damit wir automatisch die Sprache eingestellt 2) Auswählen des im Bestand vorhandenen Kühl- bzw. Gefriergeräts über das Dropdownmenü (z.B. Lager-Kühlgeräte Unterbau) 3) Länderabhängigen Stromtarif und CO2 Emissionsfaktor angeben (z.B. 0,44 kgCO2/kWh) 4) Angabe des Nettovolumens des jeweiligen Kühl- bzw. Gefriergeräts (z.B. 315 L) - auch mit dem Schieber möglich 5) Angabe des Jahresnergieverbauchs in [kWh/a] des Geräts (z.B. 1533 kWh/a) - auch mit dem Schieber möglich 6) Möglichkeit zur Eingabe mehrerer Produkte der selben Kategorie (z.B. 3x Lager-Kühlgerät Unterbau) 7) Eingabe der gesamten Nutzungdauer des Geräts (z.B. 8 Jahre) 8) Möglichkeit zur Angabe der Kaufpreise des bestehenden bzw. des neu anzuschaffenden Geräts (z.B. € 1.000,-- € bzw. 1200 €) Mit diesen Angaben kann das Tool die Total Cost of Ownership berechnen und gibt das Ergebnis in der grün hinterlegten Zelle aus (dies wird auch in einem Diagramm veranschaulicht). Auch die gesamte eingesparte Energie und die CO2 Emissionen bezogen auf die Nutzungdauer berechnet dieses Tool (grün hintelegte Zellen). Mithilfe des Tipplinks können Sie sofort für die ausgewählte Produktkategorie die effizientesten Geräte finden. | CG55: http://www.topprodukte.at/de/Products-Lists/topproductscat1/188/topproductscat2/541/topproductscat3/542/topprodukte_sort_listing/x/topprodukte_sort_direction/x/topprodukte_how_many_ds/1.html | CH55: http://www.topprodukte.at/de/Products-Lists/topproductscat1/188/topproductscat2/541/topproductscat3/543/topprodukte_sort_listing/x/topprodukte_sort_direction/x/topprodukte_how_many_ds/1.html | CI55: http://www.topprodukte.at/de/Products-Lists/topproductscat1/188/topproductscat2/541/topproductscat3/544/topprodukte_sort_listing/x/topprodukte_sort_direction/x/topprodukte_how_many_ds/1.html | CJ55: http://www.topprodukte.at/de/Products-Lists/topproductscat1/188/topproductscat2/541/topproductscat3/546/topprodukte_sort_listing/x/topprodukte_sort_direction/x/topprodukte_how_many_ds/1.html | CK55: http://www.topprodukte.at/de/Products-Lists/topproductscat1/188/topproductscat2/541/topproductscat3/547/topprodukte_sort_listing/x/topprodukte_sort_direction/x/topprodukte_how_many_ds/1.html | CL55: http://www.topprodukte.at/de/Products-Lists/topproductscat1/188/topproductscat2/541/topproductscat3/548/topprodukte_sort_listing/x/topprodukte_sort_direction/x/topprodukte_how_many_ds/1.html | CM55: Kaufpreis | CN55: Ihr Produkt | CO55: Top Produkt | CP55: 0.44 | CQ55: Graue CO2 Emissionen
M56: =VLOOKUP(Z3,AM54:BD64,3,FALSE) -> Your product | N56: =VLOOKUP(Z3,AM54:BD64,5,FALSE) -> Top product | AM56: CH_DE | AN56: Auswahl des Produkttyps | AO56: Ihr Produkt | AP56: Stromtarif | AQ56: Top Produkt | AR56: Gesamte Ersparnis | AS56: Energieverbrauch | AT56: Energiekosten | AU56: Netto Volumen | AV56: Nutzungsdauer | AW56: CO2 Emissionen | AX56: Top Produkt | AY56: Berechnungseinstellungen | AZ56: Energie Effizienz Index | BA56: Energie Effizienz Klasse | BB56: Top Produkt Preis | BC56: Ihr Produkt Preis | BD56: Anzahl Geräte | BE56: CO2 Emissonsfaktor | BF56: Professionelle Lagerkühlgeräte | BG56: Input Produktdaten | BH56: Produktvergleich bezogen auf die Lebensdauer | BI56: Lager-Kühlgeräte Unterbau | BJ56: Lager-Kühlschränke 1 - türig | BK56: Lager-Kühlschränke 2 - türig | BL56: Lager-Tiefkühlgeräte Unterbau | BM56: Lager-Tiefkühlschränke 1-türig | BN56: Lager-Tiefkühlschränke 2-türig | BO56: CHF/kWh | BP56: Jahre | BQ56: CHF | BR56: Tipplink | BS56: Default: | BT56: 0.20 | BU56: Jahresenergieverbrauch (AEC = TEC * 365) | BV56: "Finde effiziente Lager-Kühlgeräte (Unterbau) online" | BW56: "Finde effiziente Lager-Kühlschränke 1 - türig online" | BX56: "Finde effiziente Lager-Kühlschränke 2-türig online" | BY56: "Finde effiziente Lager-Tiefkühlgeräte (Unterbau) online" | BZ56: "Finde effiziente Lager-Tiefkühlschränke 1 - türig online" | CA56: "Finde effiziente Lager-Tiefkühlschränke 2 - türig online" | CB56: Gesamtkosten Vergleich | CC56: in CHF | CD56: http://www.pro-cold.eu/ | CE56: Kaufpreis | CF56: Kurzbeschreibung: Dieses Rechentool soll dem Einkäufer helfen, bei der Anschaffung neuer Kühl- und Gefriergeräte (vorwiegend im gewerblichen Bereich), Energie und Kosten zu sparen. Es folgt nun eine kurze Schritt-für-Schritt-Anleitung: Um einen Kostenvergleich zwischen den im Unternehmen bestehenden Kühlgeräten und den neu anzuschaffenden, energieeffizienten Geräten ermöglichen zu können, benötigt das Tool einige Inputdaten (grau hinterlegten Felder!) 1) Als erstes muss das jeweilige Land über das Dropdown-Menü ausgewählt werden (z.B. Austria) - damit wir automatisch die Sprache eingestellt 2) Auswählen des im Bestand vorhandenen Kühl- bzw. Gefriergeräts über das Dropdownmenü (z.B. Lager-Kühlgeräte Unterbau) 3) Länderabhängigen Stromtarif und CO2 Emissionsfaktor angeben (z.B. 0,44 kgCO2/kWh) 4) Angabe des Nettovolumens des jeweiligen Kühl- bzw. Gefriergeräts (z.B. 315 L) - auch mit dem Schieber möglich 5) Angabe des Jahresnergieverbauchs in [kWh/a] des Geräts (z.B. 1533 kWh/a) - auch mit dem Schieber möglich 6) Möglichkeit zur Eingabe mehrerer Produkte der selben Kategorie (z.B. 3x Lager-Kühlgerät Unterbau) 7) Eingabe der gesamten Nutzungdauer des Geräts (z.B. 8 Jahre) 8) Möglichkeit zur Angabe der Kaufpreise des bestehenden bzw. des neu anzuschaffenden Geräts (z.B. € 1.000,-- € bzw. 1200 €) Mit diesen Angaben kann das Tool die Total Cost of Ownership berechnen und gibt das Ergebnis in der grün hinterlegten Zelle aus (dies wird auch in einem Diagramm veranschaulicht). Auch die gesamte eingesparte Energie und die CO2 Emissionen bezogen auf die Nutzungdauer berechnet dieses Tool (grün hintelegte Zellen). Mithilfe des Tipplinks können Sie sofort für die ausgewählte Produktkategorie die effizientesten Geräte finden. | CG56: http://www.topten.ch/deutsch/gewerbegeraete/lager-kuehlgeraete/lager-kuehlschraenke-unterbau.html | CH56: http://www.topten.ch/deutsch/gewerbegeraete/lager-kuehlgeraete/lager-kuehlschraenke-1-tuerig.html | CI56: http://www.topten.ch/deutsch/gewerbegeraete/lager-kuehlgeraete/lager-kuehlschraenke-2-tuerig.html | CJ56: http://www.topten.ch/deutsch/gewerbegeraete/lager-gefriergeraete/lager-gefrierschraenke-unterbau.html | CK56: http://www.topten.ch/deutsch/gewerbegeraete/lager-gefriergeraete/lager-gefrierschraenke-1-tuerig.html | CL56: http://www.topten.ch/deutsch/gewerbegeraete/lager-gefriergeraete/lager-gefrierschraenke-2-tuerig.html | CM56: Kaufpreis | CN56: Ihr Produkt | CO56: Top Produkt | CP56: 0.44 | CQ56: Graue CO2 Emissionen
L57: =VLOOKUP(Z3,AM54:CV64,53,FALSE) -> Purchase price | M57: =$Z$25 -> 2000 | N57: =$Z$22 -> 2500 | AM57: CH_FR | AN57: "Select product type" | AO57: "Your product(s)" | AP57: "Electricity tariff" | AQ57: "Top product(s)" | AR57: "Total Savings" | AS57: "Energy consumption" | AT57: "Energy costs" | AU57: "Net volume" | AV57: "Service life" | AW57: "CO2 emissions" | AX57: "Top product(s)" | AY57: "Calculation Settings" | AZ57: "Energy Efficiency Index" | BA57: "Energy Class" | BB57: "Top product (price)" | BC57: "Your product (price)" | BD57: "Number of products in same category" | BE57: "CO2 emission factor" | BF57: "Professional Storage Cabinets" | BG57: "Input product data" | BH57: "Comparison to Top product(s) over life time" | BI57: "Storage Counter Refrigerators" | BJ57: "Storage Refrigerators 1 - door" | BK57: "Storage Refrigerators 2 - doors" | BL57: "Storage Counter Freezers" | BM57: "Storage Freezers 1 - door" | BN57: "Storage Freezers 2 - doors" | BO57: CHF/kWh | BP57: years | BQ57: CHF | BR57: "Tip-Link" | BS57: Info: | BT57: "add country specific value here" | BU57: "Annual Energy Consumption (AEC = TEC * 365)" | BV57: "„Find efficient Storage Counter Refrigerators online“" | BW57: "„Find efficient Storage Refrigerators 1 - door online“" | BX57: "„Find efficient Storage Refrigerators 2 - doors online“" | BY57: "„Find efficient Storage Counter Freezers online“" | BZ57: "„Find efficient Storage Freezers 1 - door online“" | CA57: "„Find efficient Storage Freezers 2 - doors online“" | CB57: "total energy costs - Top product(s) vs. Actual product(s)" | CC57: in CHF | CD57: http://www.pro-cold.eu/ | CE57: "purchase price" | CF57: "Short description: This tool is designed to help the buyers to save on the purchase of new refrigerators and freezers (mainly in the commercial sector), energy and costs. What follows is a short step by step guide: To enable a cost comparison between the existing refrigerators and the new energy efficient devices - the tool nees some input data (cells with gray background!) 1) The first thing is to select the right country with the help of a drop down menu (eg Austria) - so that the language can be set automatically 2) Select the existing refrigerator or freezer with the help of the dorp down menu (eg Storage Counter Refrigerators) 3) Fill in the Country-specific tariff and CO2 emission factor (eg 0.44 kgCO2/kWh) 4) Fill in the nominal volume of the respective refrigerator or freezer (eg 315 L) - also possible with the slider 5) Add the anual energy consumption in [kWh/a] (eg 1533 kWh/a) - also possible with the slider 6) Possibility to enter several products of the same category (eg 3x Storage Counter Refrigerator) 7) Entering the service life of your device (eg 8 years) 8) Option to indicate the purchase prices of the existing and the new efficient device (eg € 1,000 - € or 1200 €) With this information, the tool can calculate the total cost of ownership and gives out the result in the green highlighted cell (this is also illustrated in the graph). The total energy saved and the CO2 emissions related to the service life are also calculated by the tool (cells with green background). Using the tip-links, you can instantly find the most efficient devices for the selected product category" | CG57: http://www.topten.ch/francais/froids-professionnels/refrigerateurs-2/refrigerateur-sous-plan.html | CH57: http://www.topten.ch/francais/froids-professionnels/refrigerateurs-2/refrigerateur-1-porte.html | CI57: http://www.topten.ch/francais/froids-professionnels/refrigerateurs-2/refrigerateur-2-portes.html | CJ57: http://www.topten.ch/francais/froids-professionnels/congelateurs/congelateurs-sous-plan.html | CK57: http://www.topten.ch/francais/froids-professionnels/congelateurs/congelateurs-1-porte.html | CL57: http://www.topten.ch/francais/froids-professionnels/congelateurs/congelateurs-2-portes.html | CM57: "purchase price - product(s)" | CN57: "Your product" | CO57: "Top product" | CP57: "add country specific value here" | CQ57: "Grey CO2 emissions"
L58: =VLOOKUP(Z3,AM54:BD64,8,FALSE) -> Energy costs | M58: =$AB$25 -> 2587.2 | N58: =$AB$26 -> 1127.407968 | AM58: CH_IT | AN58: "Select product type" | AO58: "Your product(s)" | AP58: "Electricity tariff" | AQ58: "Top product(s)" | AR58: "Total Savings" | AS58: "Energy consumption" | AT58: "Energy costs" | AU58: "Net volume" | AV58: "Service life" | AW58: "CO2 emissions" | AX58: "Top product(s)" | AY58: "Calculation Settings" | AZ58: "Energy Efficiency Index" | BA58: "Energy Class" | BB58: "Top product (price)" | BC58: "Your product (price)" | BD58: "Number of products in same category" | BE58: "CO2 emission factor" | BF58: "Professional Storage Cabinets" | BG58: "Input product data" | BH58: "Comparison to Top product(s) over life time" | BI58: "Storage Counter Refrigerators" | BJ58: "Storage Refrigerators 1 - door" | BK58: "Storage Refrigerators 2 - doors" | BL58: "Storage Counter Freezers" | BM58: "Storage Freezers 1 - door" | BN58: "Storage Freezers 2 - doors" | BO58: CHF/kWh | BP58: years | BQ58: CHF | BR58: "Tip-Link" | BS58: Info: | BT58: "add country specific value here" | BU58: "Annual Energy Consumption (AEC = TEC * 365)" | BV58: "„Find efficient Storage Counter Refrigerators online“" | BW58: "„Find efficient Storage Refrigerators 1 - door online“" | BX58: "„Find efficient Storage Refrigerators 2 - doors online“" | BY58: "„Find efficient Storage Counter Freezers online“" | BZ58: "„Find efficient Storage Freezers 1 - door online“" | CA58: "„Find efficient Storage Freezers 2 - doors online“" | CB58: "total energy costs - Top product(s) vs. Actual product(s)" | CC58: in CHF | CD58: http://www.pro-cold.eu/ | CE58: "purchase price" | CF58: "Short description: This tool is designed to help the buyers to save on the purchase of new refrigerators and freezers (mainly in the commercial sector), energy and costs. What follows is a short step by step guide: To enable a cost comparison between the existing refrigerators and the new energy efficient devices - the tool nees some input data (cells with gray background!) 1) The first thing is to select the right country with the help of a drop down menu (eg Austria) - so that the language can be set automatically 2) Select the existing refrigerator or freezer with the help of the dorp down menu (eg Storage Counter Refrigerators) 3) Fill in the Country-specific tariff and CO2 emission factor (eg 0.44 kgCO2/kWh) 4) Fill in the nominal volume of the respective refrigerator or freezer (eg 315 L) - also possible with the slider 5) Add the anual energy consumption in [kWh/a] (eg 1533 kWh/a) - also possible with the slider 6) Possibility to enter several products of the same category (eg 3x Storage Counter Refrigerator) 7) Entering the service life of your device (eg 8 years) 8) Option to indicate the purchase prices of the existing and the new efficient device (eg € 1,000 - € or 1200 €) With this information, the tool can calculate the total cost of ownership and gives out the result in the green highlighted cell (this is also illustrated in the graph). The total energy saved and the CO2 emissions related to the service life are also calculated by the tool (cells with green background). Using the tip-links, you can instantly find the most efficient devices for the selected product category" | CG58: http://www.topten.ch/italiano/gastronomia/frigoriferi-per-la-ristorazione/frigoriferi-sottopiano.html | CH58: http://www.topten.ch/italiano/gastronomia/frigoriferi-per-la-ristorazione/frigoriferi-a-1-porta.html | CI58: http://www.topten.ch/italiano/gastronomia/frigoriferi-per-la-ristorazione/frigoriferi-a-2-porte.html | CJ58: http://www.topten.ch/italiano/gastronomia/congelatori-per-la-ristorazione/congelatori-sottopiano.html | CK58: http://www.topten.ch/italiano/gastronomia/congelatori-per-la-ristorazione/congelatori-a-1-porta.html | CL58: http://www.topten.ch/italiano/gastronomia/congelatori-per-la-ristorazione/congelatori-a-2-porte.html | CM58: "purchase price - product(s)" | CN58: "Your product" | CO58: "Top product" | CP58: "add country specific value here" | CQ58: "Grey CO2 emissions"
AM59: Czech Rep. | AN59: "Select product type" | AO59: "Your product(s)" | AP59: "Electricity tariff" | AQ59: "Top product(s)" | AR59: "Total Savings" | AS59: "Energy consumption" | AT59: "Energy costs" | AU59: "Net volume" | AV59: "Service life" | AW59: "CO2 emissions" | AX59: "Top product(s)" | AY59: "Calculation Settings" | AZ59: "Energy Efficiency Index" | BA59: "Energy Class" | BB59: "Top product (price)" | BC59: "Your product (price)" | BD59: "Number of products in same category" | BE59: "CO2 emission factor" | BF59: "Professional Storage Cabinets" | BG59: "Input product data" | BH59: "Comparison to Top product(s) over life time" | BI59: "Storage Counter Refrigerators" | BJ59: "Storage Refrigerators 1 - door" | BK59: "Storage Refrigerators 2 - doors" | BL59: "Storage Counter Freezers" | BM59: "Storage Freezers 1 - door" | BN59: "Storage Freezers 2 - doors" | BO59: CZK/kWh | BP59: years | BQ59: CZK | BR59: "Tip-Link" | BS59: Info: | BT59: "add country specific value here" | BU59: "Annual Energy Consumption (AEC = TEC * 365)" | BV59: "„Find efficient Storage Counter Refrigerators online“" | BW59: "„Find efficient Storage Refrigerators 1 - door online“" | BX59: "„Find efficient Storage Refrigerators 2 - doors online“" | BY59: "„Find efficient Storage Counter Freezers online“" | BZ59: "„Find efficient Storage Freezers 1 - door online“" | CA59: "„Find efficient Storage Freezers 2 - doors online“" | CB59: "total energy costs - Top product(s) vs. Actual product(s)" | CC59: in CZK | CD59: http://www.pro-cold.eu/ | CE59: "purchase price" | CF59: "Short description: This tool is designed to help the buyers to save on the purchase of new refrigerators and freezers (mainly in the commercial sector), energy and costs. What follows is a short step by step guide: To enable a cost comparison between the existing refrigerators and the new energy efficient devices - the tool nees some input data (cells with gray background!) 1) The first thing is to select the right country with the help of a drop down menu (eg Austria) - so that the language can be set automatically 2) Select the existing refrigerator or freezer with the help of the dorp down menu (eg Storage Counter Refrigerators) 3) Fill in the Country-specific tariff and CO2 emission factor (eg 0.44 kgCO2/kWh) 4) Fill in the nominal volume of the respective refrigerator or freezer (eg 315 L) - also possible with the slider 5) Add the anual energy consumption in [kWh/a] (eg 1533 kWh/a) - also possible with the slider 6) Possibility to enter several products of the same category (eg 3x Storage Counter Refrigerator) 7) Entering the service life of your device (eg 8 years) 8) Option to indicate the purchase prices of the existing and the new efficient device (eg € 1,000 - € or 1200 €) With this information, the tool can calculate the total cost of ownership and gives out the result in the green highlighted cell (this is also illustrated in the graph). The total energy saved and the CO2 emissions related to the service life are also calculated by the tool (cells with green background). Using the tip-links, you can instantly find the most efficient devices for the selected product category" | CM59: "purchase price - product(s)" | CN59: "Your product" | CO59: "Top product" | CP59: "add country specific value here" | CQ59: "Grey CO2 emissions"
AM60: France | AN60: "Select product type" | AO60: "Your product(s)" | AP60: "Electricity tariff" | AQ60: "Top product(s)" | AR60: "Total Savings" | AS60: "Energy consumption" | AT60: "Energy costs" | AU60: "Net volume" | AV60: "Service life" | AW60: "CO2 emissions" | AX60: "Top product(s)" | AY60: "Calculation Settings" | AZ60: "Energy Efficiency Index" | BA60: "Energy Class" | BB60: "Top product (price)" | BC60: "Your product (price)" | BD60: "Number of products in same category" | BE60: "CO2 emission factor" | BF60: "Professional Storage Cabinets" | BG60: "Input product data" | BH60: "Comparison to Top product(s) over life time" | BI60: "Storage Counter Refrigerators" | BJ60: "Storage Refrigerators 1 - door" | BK60: "Storage Refrigerators 2 - doors" | BL60: "Storage Counter Freezers" | BM60: "Storage Freezers 1 - door" | BN60: "Storage Freezers 2 - doors" | BO60: €/kWh | BP60: years | BQ60: € | BR60: "Tip-Link" | BS60: Info: | BT60: "add country specific value here" | BU60: "Annual Energy Consumption (AEC = TEC * 365)" | BV60: "„Find efficient Storage Counter Refrigerators online“" | BW60: "„Find efficient Storage Refrigerators 1 - door online“" | BX60: "„Find efficient Storage Refrigerators 2 - doors online“" | BY60: "„Find efficient Storage Counter Freezers online“" | BZ60: "„Find efficient Storage Freezers 1 - door online“" | CA60: "„Find efficient Storage Freezers 2 - doors online“" | CB60: "total energy costs - Top product(s) vs. Actual product(s)" | CC60: in € | CD60: http://www.pro-cold.eu/ | CE60: "purchase price" | CF60: Short description: This tool is designed to help the buyers to save on the purchase of new refrigerators and freezers (mainly in the commercial sector), energy and costs. What follows is a short step by step guide: To enable a cost comparison between the existing refrigerators and the new energy efficient devices - the tool nees some input data (cells with gray background!) 1) The first thing is to select the right country with the help of a drop down menu (eg Austria) - so that the language can be set automatically 2) Select the existing refrigerator or freezer with the help of the dorp down menu (eg Storage Counter Refrigerators) 3) Fill in the Country-specific tariff and CO2 emission factor (eg 0.44 kgCO2/kWh) 4) Fill in the nominal volume of the respective refrigerator or freezer (eg 315 L) - also possible with the slider 5) Add the anual energy consumption in [kWh/a] (eg 1533 kWh/a) - also possible with the slider 6) Possibility to enter several products of the same category (eg 3x Storage Counter Refrigerator) 7) Entering the service life of your device (eg 8 years) 8) Option to indicate the purchase prices of the existing and the new efficient device (eg € 1,000 - € or 1200 €) With this information, the tool can calculate the total cost of ownership and gives out the result in the green highlighted cell (this is also illustrated in the graph). The total energy saved and the CO2 emissions related to the service life are also calculated by the tool (cells with green background). Using the tip-links, you can instantly find the most efficient devices for the selected product category | CM60: "purchase price - product(s)" | CN60: "Your product" | CO60: "Top product" | CP60: "add country specific value here" | CQ60: "Grey CO2 emissions"
AM61: Germany | AN61: Auswahl des Produkttyps | AO61: Ihr(e) Produkt(e) | AP61: Stromtarif | AQ61: Top Produkt(e) | AR61: Gesamte Ersparnis | AS61: Energieverbrauch | AT61: Energiekosten | AU61: Netto Volumen | AV61: Nutzungsdauer | AW61: CO2 Emissionen | AX61: Top Produkt(e) | AY61: Berechnungseinstellungen | AZ61: Energie Effizienz Index | BA61: Energie Effizienz Klasse | BB61: Top Produkt (Preis) | BC61: Ihr Produkt (Preis) | BD61: Anzahl an Produkten derselben Kategorie | BE61: CO2 Emissonsfaktor | BF61: Professionelle Lagerkühlgeräte | BG61: Input Produktdaten | BH61: Vergleich zu dem/den Top Produkt(en) bezogen auf die Lebensdauer | BI61: Lager-Kühlgeräte Unterbau | BJ61: Lager-Kühlschränke 1 - türig | BK61: Lager-Kühlschränke 2 - türig | BL61: Lager-Tiefkühlgeräte Unterbau | BM61: Lager-Tiefkühlschränke 1-türig | BN61: Lager-Tiefkühlschränke 2-türig | BO61: €/kWh | BP61: Jahre | BQ61: € | BR61: Tipplink | BS61: Info: | BT61: "füge länderspezifischen Wert hier ein" | BU61: Jahresenergieverbrauch (AEC = TEC * 365) | BV61: "Finde effiziente Lager-Kühlgeräte (Unterbau) online" | BW61: "Finde effiziente Lager-Kühlschränke 1 - türig online" | BX61: "Finde effiziente Lager-Kühlschränke 2 - türig online" | BY61: "Finde effiziente Lager-Tiefkühlgeräte (Unterbau) online" | BZ61: "Finde effiziente Lager-Tiefkühlschränke 1-türig online" | CA61: "Finde effiziente Lager-Tiefkühlschränke 2 - türig online" | CB61: Gesamt Energiekosten - Topprodukt(e) vs. Bestehene(s) Produkt(e) | CC61: in € | CD61: http://www.pro-cold.eu/ | CE61: Kaufpreis | CF61: Kurzbeschreibung: Dieses Rechentool soll dem Einkäufer helfen, bei der Anschaffung neuer Kühl- und Gefriergeräte (vorwiegend im gewerblichen Bereich), Energie und Kosten zu sparen. Es folgt nun eine kurze Schritt-für-Schritt-Anleitung: Um einen Kostenvergleich zwischen den im Unternehmen bestehenden Kühlgeräten und den neu anzuschaffenden, energieeffizienten Geräten ermöglichen zu können, benötigt das Tool einige Inputdaten (grau hinterlegten Felder!) 1) Als erstes muss das jeweilige Land über das Dropdown-Menü ausgewählt werden (z.B. Austria) - damit wir automatisch die Sprache eingestellt 2) Auswählen des im Bestand vorhandenen Kühl- bzw. Gefriergeräts über das Dropdownmenü (z.B. Lager-Kühlgeräte Unterbau) 3) Länderabhängigen Stromtarif und CO2 Emissionsfaktor angeben (z.B. 0,44 kgCO2/kWh) 4) Angabe des Nettovolumens des jeweiligen Kühl- bzw. Gefriergeräts (z.B. 315 L) - auch mit dem Schieber möglich 5) Angabe des Jahresnergieverbauchs in [kWh/a] des Geräts (z.B. 1533 kWh/a) - auch mit dem Schieber möglich 6) Möglichkeit zur Eingabe mehrerer Produkte der selben Kategorie (z.B. 3x Lager-Kühlgerät Unterbau) 7) Eingabe der gesamten Nutzungdauer des Geräts (z.B. 8 Jahre) 8) Möglichkeit zur Angabe der Kaufpreise des bestehenden bzw. des neu anzuschaffenden Geräts (z.B. € 1.000,-- € bzw. 1200 €) Mit diesen Angaben kann das Tool die Total Cost of Ownership berechnen und gibt das Ergebnis in der grün hinterlegten Zelle aus (dies wird auch in einem Diagramm veranschaulicht). Auch die gesamte eingesparte Energie und die CO2 Emissionen bezogen auf die Nutzungdauer berechnet dieses Tool (grün hintelegte Zellen). Mithilfe des Tipplinks können Sie sofort für die ausgewählte Produktkategorie die effizientesten Geräte finden. | CM61: Kaufpreis - Produkt(e) | CN61: Ihr Produkt | CO61: Top Produkt | CP61: 0,666 (gemäß Ecoinvent 3.01) | CQ61: Graue CO2 Emissionen
AM62: Italy | AN62: "Select product type" | AO62: "Your product(s)" | AP62: "Electricity tariff" | AQ62: "Top product(s)" | AR62: "Total Savings" | AS62: "Energy consumption" | AT62: "Energy costs" | AU62: "Net volume" | AV62: "Service life" | AW62: "CO2 emissions" | AX62: "Top product(s)" | AY62: "Calculation Settings" | AZ62: "Energy Efficiency Index" | BA62: "Energy Class" | BB62: "Top product (price)" | BC62: "Your product (price)" | BD62: "Number of products in same category" | BE62: "CO2 emission factor" | BF62: "Professional Storage Cabinets" | BG62: "Input product data" | BH62: "Comparison to Top product(s) over life time" | BI62: "Storage Counter Refrigerators" | BJ62: "Storage Refrigerators 1 - door" | BK62: "Storage Refrigerators 2 - doors" | BL62: "Storage Counter Freezers" | BM62: "Storage Freezers 1 - door" | BN62: "Storage Freezers 2 - doors" | BO62: €/kWh | BP62: years | BQ62: € | BR62: "Tip-Link" | BS62: Info: | BT62: "add country specific value here" | BU62: "Annual Energy Consumption (AEC = TEC * 365)" | BV62: "„Find efficient Storage Counter Refrigerators online“" | BW62: "„Find efficient Storage Refrigerators 1 - door online“" | BX62: "„Find efficient Storage Refrigerators 2 - doors online“" | BY62: "„Find efficient Storage Counter Freezers online“" | BZ62: "„Find efficient Storage Freezers 1 - door online“" | CA62: "„Find efficient Storage Freezers 2 - doors online“" | CB62: "total energy costs - Top product(s) vs. Actual product(s)" | CC62: in € | CD62: http://www.pro-cold.eu/ | CE62: "purchase price" | CF62: "Short description: This tool is designed to help the buyers to save on the purchase of new refrigerators and freezers (mainly in the commercial sector), energy and costs. What follows is a short step by step guide: To enable a cost comparison between the existing refrigerators and the new energy efficient devices - the tool nees some input data (cells with gray background!) 1) The first thing is to select the right country with the help of a drop down menu (eg Austria) - so that the language can be set automatically 2) Select the existing refrigerator or freezer with the help of the dorp down menu (eg Storage Counter Refrigerators) 3) Fill in the Country-specific tariff and CO2 emission factor (eg 0.44 kgCO2/kWh) 4) Fill in the nominal volume of the respective refrigerator or freezer (eg 315 L) - also possible with the slider 5) Add the anual energy consumption in [kWh/a] (eg 1533 kWh/a) - also possible with the slider 6) Possibility to enter several products of the same category (eg 3x Storage Counter Refrigerator) 7) Entering the service life of your device (eg 8 years) 8) Option to indicate the purchase prices of the existing and the new efficient device (eg € 1,000 - € or 1200 €) With this information, the tool can calculate the total cost of ownership and gives out the result in the green highlighted cell (this is also illustrated in the graph). The total energy saved and the CO2 emissions related to the service life are also calculated by the tool (cells with green background). Using the tip-links, you can instantly find the most efficient devices for the selected product category" | CM62: "purchase price - product(s)" | CN62: "Your product" | CO62: "Top product" | CP62: "add country specific value here" | CQ62: "Grey CO2 emissions"
AM63: Portugal | AN63: "Select product type" | AO63: "Your product(s)" | AP63: "Electricity tariff" | AQ63: "Top product(s)" | AR63: "Total Savings" | AS63: "Energy consumption" | AT63: "Energy costs" | AU63: "Net volume" | AV63: "Service life" | AW63: "CO2 emissions" | AX63: "Top product(s)" | AY63: "Calculation Settings" | AZ63: "Energy Efficiency Index" | BA63: "Energy Class" | BB63: "Top product (price)" | BC63: "Your product (price)" | BD63: "Number of products in same category" | BE63: "CO2 emission factor" | BF63: "Professional Storage Cabinets" | BG63: "Input product data" | BH63: "Comparison to Top product(s) over life time" | BI63: "Storage Counter Refrigerators" | BJ63: "Storage Refrigerators 1 - door" | BK63: "Storage Refrigerators 2 - doors" | BL63: "Storage Counter Freezers" | BM63: "Storage Freezers 1 - door" | BN63: "Storage Freezers 2 - doors" | BO63: €/kWh | BP63: years | BQ63: € | BR63: "Tip-Link" | BS63: Info: | BT63: "add country specific value here" | BU63: "Annual Energy Consumption (AEC = TEC * 365)" | BV63: "„Find efficient Storage Counter Refrigerators online“" | BW63: "„Find efficient Storage Refrigerators 1 - door online“" | BX63: "„Find efficient Storage Refrigerators 2 - doors online“" | BY63: "„Find efficient Storage Counter Freezers online“" | BZ63: "„Find efficient Storage Freezers 1 - door online“" | CA63: "„Find efficient Storage Freezers 2 - doors online“" | CB63: "total energy costs - Top product(s) vs. Actual product(s)" | CC63: in € | CD63: http://www.pro-cold.eu/ | CE63: "purchase price" | CF63: "Short description: This tool is designed to help the buyers to save on the purchase of new refrigerators and freezers (mainly in the commercial sector), energy and costs. What follows is a short step by step guide: To enable a cost comparison between the existing refrigerators and the new energy efficient devices - the tool nees some input data (cells with gray background!) 1) The first thing is to select the right country with the help of a drop down menu (eg Austria) - so that the language can be set automatically 2) Select the existing refrigerator or freezer with the help of the dorp down menu (eg Storage Counter Refrigerators) 3) Fill in the Country-specific tariff and CO2 emission factor (eg 0.44 kgCO2/kWh) 4) Fill in the nominal volume of the respective refrigerator or freezer (eg 315 L) - also possible with the slider 5) Add the anual energy consumption in [kWh/a] (eg 1533 kWh/a) - also possible with the slider 6) Possibility to enter several products of the same category (eg 3x Storage Counter Refrigerator) 7) Entering the service life of your device (eg 8 years) 8) Option to indicate the purchase prices of the existing and the new efficient device (eg € 1,000 - € or 1200 €) With this information, the tool can calculate the total cost of ownership and gives out the result in the green highlighted cell (this is also illustrated in the graph). The total energy saved and the CO2 emissions related to the service life are also calculated by the tool (cells with green background). Using the tip-links, you can instantly find the most efficient devices for the selected product category" | CM63: "purchase price - product(s)" | CN63: "Your product" | CO63: "Top product" | CP63: "add country specific value here" | CQ63: "Grey CO2 emissions"
AM64: Sweden | AN64: "Select product type" | AO64: "Your product(s)" | AP64: "Electricity tariff" | AQ64: "Top product(s)" | AR64: "Total Savings" | AS64: "Energy consumption" | AT64: "Energy costs" | AU64: "Net volume" | AV64: "Service life" | AW64: "CO2 emissions" | AX64: "Top product(s)" | AY64: "Calculation Settings" | AZ64: "Energy Efficiency Index" | BA64: "Energy Class" | BB64: "Top product (price)" | BC64: "Your product (price)" | BD64: "Number of products in same category" | BE64: "CO2 emission factor" | BF64: "Professional Storage Cabinets" | BG64: "Input product data" | BH64: "Comparison to Top product(s) over life time" | BI64: "Storage Counter Refrigerators" | BJ64: "Storage Refrigerators 1 - door" | BK64: "Storage Refrigerators 2 - doors" | BL64: "Storage Counter Freezers" | BM64: "Storage Freezers 1 - door" | BN64: "Storage Freezers 2 - doors" | BO64: SEK/kWh | BP64: years | BQ64: SEK | BR64: "Tip-Link" | BS64: Info: | BT64: "add country specific value here" | BU64: "Annual Energy Consumption (AEC = TEC * 365)" | BV64: "„Find efficient Storage Counter Refrigerators online“" | BW64: "„Find efficient Storage Refrigerators 1 - door online“" | BX64: "„Find efficient Storage Refrigerators 2 - doors online“" | BY64: "„Find efficient Storage Counter Freezers online“" | BZ64: "„Find efficient Storage Freezers 1 - door online“" | CA64: "„Find efficient Storage Freezers 2 - doors online“" | CB64: "total energy costs - Top product(s) vs. Actual product(s)" | CC64: in SEK | CD64: http://www.pro-cold.eu/ | CE64: "purchase price" | CF64: "Short description: This tool is designed to help the buyers to save on the purchase of new refrigerators and freezers (mainly in the commercial sector), energy and costs. What follows is a short step by step guide: To enable a cost comparison between the existing refrigerators and the new energy efficient devices - the tool nees some input data (cells with gray background!) 1) The first thing is to select the right country with the help of a drop down menu (eg Austria) - so that the language can be set automatically 2) Select the existing refrigerator or freezer with the help of the dorp down menu (eg Storage Counter Refrigerators) 3) Fill in the Country-specific tariff and CO2 emission factor (eg 0.44 kgCO2/kWh) 4) Fill in the nominal volume of the respective refrigerator or freezer (eg 315 L) - also possible with the slider 5) Add the anual energy consumption in [kWh/a] (eg 1533 kWh/a) - also possible with the slider 6) Possibility to enter several products of the same category (eg 3x Storage Counter Refrigerator) 7) Entering the service life of your device (eg 8 years) 8) Option to indicate the purchase prices of the existing and the new efficient device (eg € 1,000 - € or 1200 €) With this information, the tool can calculate the total cost of ownership and gives out the result in the green highlighted cell (this is also illustrated in the graph). The total energy saved and the CO2 emissions related to the service life are also calculated by the tool (cells with green background). Using the tip-links, you can instantly find the most efficient devices for the selected product category" | CM64: "purchase price - product(s)" | CN64: "Your product" | CO64: "Top product" | CP64: "add country specific value here" | CQ64: "Grey CO2 emissions"
AM67: Beschreibung: | AQ67: Description:
L68: topprodukte | M68: Modell | O68: EEI | P68: Mittelwert | AM68: Dies ist die SVERWEIS-Datenbank - hier holt sich das Tool die benötigten Beschriftungen bzw. Einheiten - welche länderabhängig sind. Für die englisch u. deutssprachigen Länder sind die Bezeichungen schon festgelegt. Für die anderen noch ausstehenen Länder (z.B. Iatlien, Frankreich, usw.) wurde als Platzhalter immer der englische Begriff unter Anführungszeichen in der Datenbank hinterlegt - dieser kann dann durch den jweiligen Partner selber in der SVERWEIS Datenbank auf die richtige Sprache umgeändert werden... | AQ68: This is a SVERWEIS-database - here the tool faetches the necessary labels or units - which are country-dependent. For the English u. German-speaking countries, the labels have been defined. For the other remaining countries (eg Italy, France, etc.) always the English term was deposited under quotation marks in the database as a free variable parameter - these can be changed to the SVERWEIS-database to the correct language by the partner himself...
M69: Storage Counter Refrigerators
M70: COMPACT K 210 RG | O70: 15.1
M71: PTGM4 | O71: 20.9
M72: PTGM3 | O72: 22.6
M73: PTGM2 | O73: 25.7 | P73: =SUM(O70:O73)/4 -> 21.075
M74: Storage Refrigerators 1-door
M75: EURO K 500 LSG | O75: 58.6
M76: COMPACT K 610 LG | O76: 55.7
M77: GKv 6410 | O77: 54.9
M78: IPGM7G | O78: 52
M79: GKv 5730 | O79: 51.7
M80: Plus K 660 LSG | O80: 51.6
M81: GKPv 6570 | O81: 49.9
M82: TWIN K 660 LSG | O82: 49.3
M83: TWIN K 600 RSG | O83: 48.4
M84: PGM7 | O84: 48.2
M85: COMPACT K 410 LG | O85: 47.3
M86: GKv 5710 | O86: 47
M87: MIDI K 425 LSG | O87: 45.7
M88: IPGM7G | O88: 44.3
M89: Ecostore Touch 727298 | O89: 40
M90: Ecostore Premium 727310 | O90: 40
M91: GKPv 6590 | O91: 39.8
M92: EcoPro EP700H | O92: 38.9
M93: MIDI K 625 LSG | O93: 38.3
M94: PLUS K 600 RSG | O94: 38.1
M95: Inventus C7 | O95: 28.9
M96: Eco Plus K70G | O96: 28.8
M97: Inventus C6 | O97: 28.5
M98: Inventus C8 | O98: 24.2
M99: Superior Plus K72G | O99: 26.62
M100: Inventus CX7 | O100: 20.11 | P100: =SUM(O75:O100)/26 -> 42.18576923
M101: Storage Refrigerators 2 - doors
M102: PG2M14 | O102: 63.1
M103: GKPv 1470 | O103: 62.3
M104: Ecostore Premium 727322 | O104: 57.7
M105: GKPv 1490 | O105: 56.6
M106: PGM14G | O106: 46.4
M107: Ecostore Premium 727320 | O107: 45.8
M108: Ecostore Touch 727304 | O108: 45.8
M109: PGM14 | O109: 37.1 | P109: =SUM(O102:O109)/8 -> 51.85
M110: Storage Counter Freezers
M111: COMPACT F 210 LG | O111: 28.7
M112: GGU 1500 | O112: 16 | P112: =SUM(O111:O112)/2 -> 22.35
M113: Storage Freezers 1 - door
M114: COMPACT F 610 RG | O114: 71.4
M115: EcoPro EP700L | O115: 69.6
M116: F 605 RG | O116: 68.7
M117: EURO F 500 LSG | O117: 66.2
M118: GGPv 6570 | O118: 64.9
M119: MIDI F 425 RSG | O119: 64.7
M120: PLUS F 660 RSG | O120: 63.4
M121: PLUS F 600 RSG | O121: 62
M122: GGPv 6590 | O122: 60
M123: Ecostore Premium 727314 | O123: 59.6
M124: TWIN F 600 RSG | O124: 57.5
M125: MIDI F 625 LSG | O125: 57.1
M126: TWIN F 600 LSG | O126: 54.7
M127: GGv 5810 | O127: 52
M128: Ecostore Touch 727300 | O128: 46.8
M129: GGv 5010 | O129: 37.9
M130: Inventus F6 | O130: 33.9
M131: Inventus F8 | O131: 29.9
M132: Inventus F7 | O132: 26.8
M133: Inventus FX7 | O133: 19.5 | P133: =SUM(O114:O133)/20 -> 53.33
M134: Storage Freezers 2 - doors
M135: PLUS F 1270 RSG | O135: 71.4
M136: PLUS F 1400 RSG | O136: 66.8
M137: GGPv 1470 | O137: 63.9
M138: Ecostore Premium 727323 | O138: 60
M139: GGPv 1490 | O139: 59.4 | P139: =SUM(O135:O139)/5 -> 64.3
L141: Tabelle EEI
L142: 1 | M142: A+++
L143: 2 | M143: A+++
L144: 3 | M144: A+++
L145: 4 | M145: A+++
L146: 5 | M146: A+++
L147: 6 | M147: A+++
L148: 7 | M148: A+++
L149: 8 | M149: A+++
L150: 9 | M150: A+++
L151: 10 | M151: A++
L152: 11 | M152: A++
L153: 12 | M153: A++
L154: 13 | M154: A++
L155: 14 | M155: A++
L156: 15 | M156: A+
L157: 16 | M157: A+
L158: 17 | M158: A+
L159: 18 | M159: A+
L160: 19 | M160: A+
L161: 20 | M161: A
L162: 21 | M162: A
L163: 22 | M163: A
L164: 23 | M164: A
L165: 24 | M165: A
L166: 25 | M166: A
L167: 26 | M167: A
L168: 27 | M168: A
L169: 28 | M169: A
L170: 29 | M170: A
L171: 30 | M171: B
L172: 31 | M172: B
L173: 32 | M173: B
L174: 33 | M174: B
L175: 34 | M175: B
L176: 35 | M176: B
L177: 36 | M177: B
L178: 37 | M178: B
L179: 38 | M179: B
L180: 39 | M180: B
L181: 40 | M181: C
L182: 41 | M182: C
L183: 42 | M183: C
L184: 43 | M184: C
L185: 44 | M185: C
L186: 45 | M186: C
L187: 46 | M187: C
L188: 47 | M188: C
L189: 48 | M189: C
L190: 49 | M190: C
L191: 50 | M191: C
L192: 51 | M192: C
L193: 52 | M193: C
L194: 53 | M194: C
L195: 54 | M195: C
L196: 55 | M196: D
L197: 56 | M197: D
L198: 57 | M198: D
L199: 58 | M199: D
L200: 59 | M200: D
L201: 60 | M201: D
L202: 61 | M202: D
L203: 62 | M203: D
L204: 63 | M204: D
L205: 64 | M205: D
L206: 65 | M206: D
L207: 66 | M207: D
L208: 67 | M208: D
L209: 68 | M209: D
L210: 69 | M210: D
L211: 70 | M211: D
L212: 71 | M212: D
L213: 72 | M213: D
L214: 73 | M214: D
... 42 more rows
